bitfinex-derivatives/quotes_ETHF0:USTF0_20260223
["timestamp","ask_amount","ask_price","bid_price","bid_amount"]
[1771847732606,1.09368606,1914.7,1913.9,0.00502406]
[1771847733309,1.09368606,1914.5,1913.9,0.00502406]
[1771847734709,1.09368606,1914.3,1913.9,0.00502406]
[1771847735915,1.09368606,1914.3,1913.6,0.2844349]
[1771847736814,1.09368606,1914.3,1913.6,0.2899408]
[1771847737414,1.09368606,1914.1,1913.6,0.2899408]
[1771847737616,1.09920145,1914.1,1913.6,0.2899408]
[1771847737816,1.09920145,1914.1,1913.6,0.0055059]
[1771847740819,1.09920145,1914.1,1913.6,0.26054761]
[1771847741520,1.09368606,1914.4,1913.6,0.26054761]
[1771847742521,1.10018141,1914.4,1913.6,0.26054761]
[1771847745519,1.10018141,1914.4,1913.6,0.0055059]
[1771847745724,5.46544159,1914.4,1913.6,0.0055059]
[1771847746024,1.09368606,1914.3,1913.6,0.0055059]
[1771847749626,1.09368606,1914.3,1913.6,1.12449082]
[1771847759328,1.09368606,1914.3,1913.6,0.0055059]
[1771847761229,1.09368606,1914.3,1913.6,1.12449082]
[1771847763230,1.08641803,1914.2,1913.6,1.12449082]
[1771847774539,1.08641803,1914.2,1913.6,0.0055059]
[1771847776541,1.08641803,1914.2,1913.6,1.12449082]
[1771847777945,1.08226841,1914.3,1913.7,1.13973553]
[1771847781151,1.08226841,1914.3,1913.8,1.14172743]
[1771847783849,1.08226841,1914.3,1913.6,4.37946356]
[1771847784052,1.08226841,1914.3,1913.6,0.0055059]
[1771847786849,1.08226841,1914.3,1913.6,1.05727907]
[1771847791246,5.45464255,1914.4,1913.6,1.05727907]
[1771847791452,1.08288702,1914.5,1913.9,1.06696021]
[1771847791753,1.08288702,1914.5,1914.0,1.06696021]
[1771847792050,1.08288702,1914.8,1914.1,1.07425904]
[1771847792549,1.088163,1914.8,1914.1,1.07425904]
[1771847797259,1.088163,1914.8,1914.3,1.08410481]
[1771847798854,1.088163,1914.8,1914.2,1.69773984]
[1771847799053,1.08288702,1914.7,1914.0,1.0848846]
[1771847799354,1.08288702,1914.7,1913.9,1.0848846]
[1771847802559,1.08288702,1914.7,1913.7,7.14949294]
[1771847802758,1.08288702,1914.7,1913.8,1.07775878]
[1771847804561,1.08288702,1914.5,1913.8,1.07775878]
[1771847806964,1.08288702,1914.5,1913.7,6.06942555]
[1771847807159,1.08288702,1914.5,1913.7,1.09797251]
[1771847807364,1.08288702,1914.5,1913.7,5.46965822]
[1771847807561,1.08288702,1914.5,1913.7,1.09797251]
[1771847808360,1.0918289,1914.3,1913.7,1.09797251]
[1771847809971,1.0918289,1914.3,1913.6,1.08963433]
[1771847820279,1.0918289,1914.3,1913.7,2.78186827]
[1771847821181,1.0918289,1914.3,1913.8,1.08412843]
[1771847833791,1.0918289,1914.6,1914.2,1.08412843]
[1771847840392,1.13175071,1914.8,1914.4,1.18087916]
[1771847843687,0.00527598,1914.8,1914.6,1.18087916]
[1771847843893,1.12647473,1914.9,1914.6,1.18087916]
[1771847844394,1.12647473,1914.9,1914.5,1.69773984]
[1771847844589,1.12647473,1914.9,1914.5,1.18087916]
[1771847844789,1.13053553,1914.9,1914.5,1.18087916]
[1771847847691,1.13053553,1914.9,1914.4,1.18087916]
[1771847850398,1.39167553,1914.9,1914.4,1.18087916]
[1771847853402,1.12647473,1915.0,1914.6,1.18087916]
[1771847853597,1.12647473,1915.1,1914.8,1.18087916]
[1771847853999,0.43222298,1915.4,1914.8,1.18087916]
[1771847854600,0.43287703,1915.2,1914.8,1.18087916]
[1771847864013,0.2611,1915.1,1914.8,1.18087916]
[1771847866308,0.69874931,1915.1,1914.8,1.18087916]
[1771847866513,0.69874931,1915.1,1914.3,4.38021533]
[1771847866714,0.69874931,1915.1,1914.4,1.18087916]
[1771847870421,0.26113,1914.9,1914.4,1.18087916]
[1771847873425,0.68150638,1914.9,1914.4,1.18087916]
[1771847873820,0.26113,1914.9,1914.4,1.18087916]
[1771847877327,0.26113,1914.9,1914.5,1.19941114]
[1771847879729,0.67024266,1914.9,1914.5,1.19941114]
[1771847887137,0.65950868,1914.9,1914.5,1.19941114]
[1771847888138,0.26113,1914.9,1914.5,1.19941114]
[1771847892540,0.26113,1914.9,1914.4,1.19941114]
[1771847892541,0.34556704,1914.8,1914.4,1.19941114]
[1771847893038,0.60669698,1914.9,1914.4,1.19941114]
[1771847893741,0.26113,1914.9,1914.4,1.19941114]
[1771847894738,0.26116,1914.7,1914.4,1.19941114]
[1771847896240,0.60391865,1914.7,1914.4,1.19941114]
[1771847896442,0.26116,1914.7,1914.4,1.19941114]
[1771847897843,0.60031369,1914.7,1914.4,1.19941114]
[1771847899137,0.26116,1914.7,1914.4,1.19941114]
[1771847904543,0.26119,1914.5,1914.1,1.16584284]
[1771847905846,0.26121,1914.3,1914.1,1.16584284]
[1771847907651,0.26121,1914.3,1914.1,0.79469026]
[1771847909653,0.26126,1914.0,1913.7,1.16584284]
[1771847909849,7.56385018,1914.5,1913.7,1.16584284]
[1771847910854,7.57062725,1914.5,1913.7,1.16584284]
[1771847911356,0.2612,1914.4,1913.7,1.16584284]
[1771847913853,1.39943018,1914.4,1913.7,1.16584284]
[1771847915854,0.2612,1914.4,1913.7,1.16584284]
[1771847916554,1.39943018,1914.4,1913.7,1.16584284]
[1771847917452,0.2612,1914.4,1913.7,1.16584284]
[1771847921359,1.39943018,1914.4,1913.7,1.16584284]
[1771847922269,1.39948018,1914.1,1913.6,1.17134874]
[1771847922471,0.26125,1914.1,1913.6,1.17134874]
[1771847924369,1.39948018,1914.1,1913.6,1.17134874]
[1771847924569,0.26125,1914.1,1913.6,1.17134874]
[1771847927777,1.13298672,1914.4,1913.7,1.11230089]
[1771847927980,1.13298672,1914.4,1913.9,1.11230089]
[1771847928379,0.00677707,1914.5,1913.9,1.11230089]
[1771847928677,1.13976379,1914.5,1913.9,1.11230089]
[1771847929380,0.26125,1914.1,1913.9,1.11230089]
[1771847930377,1.13976379,1914.5,1913.9,1.11230089]
[1771847931378,0.26125,1914.1,1913.9,1.11230089]
[1771847933084,1.13298672,1914.4,1913.9,1.11230089]
[1771847933480,0.26125,1914.1,1913.9,1.11230089]
[1771847935084,1.39423672,1914.1,1913.7,1.11230089]
[1771847935284,0.26125,1914.1,1913.7,1.11230089]
[1771847941885,0.00677707,1914.5,1914.0,1.11230089]
[1771847942083,0.00677707,1914.5,1914.2,1.11230089]
[1771847942592,1.13298672,1914.8,1914.2,1.11230089]
[1771847943588,1.13704322,1914.8,1914.2,1.11230089]
[1771847944084,0.0040565,1914.8,1914.4,1.11230089]
[1771847944390,0.26114,1914.9,1914.6,1.11230089]
[1771847944785,1.13298672,1915.1,1914.6,1.11230089]
[1771847945288,1.13952191,1915.1,1914.6,1.11230089]
[1771847946889,0.00653519,1915.1,1914.6,1.11230089]
[1771847952293,0.26765519,1915.1,1914.6,1.11230089]
[1771847954086,0.26765519,1915.1,1914.8,1.11230089]
[1771847954290,1.13298672,1915.5,1915.0,1.11230089]
[1771847955286,1.13751057,1915.5,1915.0,1.1169169]
[1771847955483,1.39856057,1915.5,1915.0,1.1169169]
[1771847958394,0.2611,1915.2,1915.0,1.1169169]
[1771847958591,1.13751057,1915.5,1915.0,1.1169169]
[1771847960091,1.14337309,1915.5,1915.0,1.1169169]
[1771847960394,0.2611,1915.2,1915.0,1.1169169]
[1771847960595,1.14337309,1915.5,1915.0,1.1169169]
[1771847960894,0.00452385,1915.5,1915.0,1.1169169]
[1771847961390,0.2611,1915.2,1915.0,1.1169169]
[1771847961598,0.00452385,1915.5,1915.0,1.1169169]
[1771847961793,1.14337309,1915.5,1915.0,1.1169169]
[1771847962397,0.2611,1915.2,1915.0,1.1169169]
[1771847962596,1.14337309,1915.5,1915.0,1.1169169]
[1771847963395,0.2611,1915.2,1915.0,1.1169169]
[1771847963594,1.14337309,1915.5,1915.0,1.1169169]
[1771847964395,0.2611,1915.2,1915.0,1.1169169]
[1771847964694,1.14337309,1915.5,1915.0,1.1169169]
[1771847964897,0.00452385,1915.5,1915.0,2.81571036]
[1771847965096,0.26104,1915.6,1915.1,1.136583]
[1771847966297,0.26545562,1915.6,1915.1,1.136583]
[1771847968496,1.40430486,1915.6,1915.1,1.136583]
[1771847982807,0.26102,1915.7,1915.2,1.136583]
[1771847983006,1.13884924,1915.6,1915.2,1.136583]
[1771847983900,0.006747,1915.6,1915.2,1.136583]
[1771847985504,0.006747,1915.6,1915.0,4.37789268]
[1771847985505,1.39989924,1915.5,1915.1,1.136583]
[1771847997416,1.39989924,1915.5,1915.0,1.16876821]
[1771848000220,1.39989924,1915.5,1915.0,0.00461601]
[1771848000524,1.39989924,1915.5,1915.0,1.1641522]
[1771848001422,1.39989924,1915.5,1915.0,1.16808359]
[1771848001924,0.26105,1915.5,1915.0,1.16808359]
[1771848002823,1.45187538,1915.5,1915.0,1.16808359]
[1771848003227,1.45192538,1915.2,1914.7,1.1641522]
[1771848003722,1.45192538,1915.2,1914.6,1.1641522]
[1771848004223,1.45192538,1915.2,1914.6,1.16840657]
[1771848004628,1.19082538,1914.8,1914.5,1.1641522]
[1771848005524,1.45196538,1914.9,1914.5,1.1641522]
[1771848005722,1.45196538,1914.9,1914.5,1.16853407]
[1771848006120,1.45196538,1914.9,1914.5,0.00438187]
[1771848006327,1.45196538,1914.9,1914.3,1.1641522]
[1771848007329,1.45196538,1914.9,1914.3,1.16865803]
[1771848007831,1.19082538,1915.4,1914.6,1.1641522]
[1771848008019,7.61309538,1915.4,1914.6,1.1641522]
[1771848008224,1.19082538,1915.3,1914.6,1.1641522]
[1771848008724,0.26109,1915.2,1914.6,1.1641522]
[1771848008925,1.00426385,1915.6,1914.9,1.1641522]
[1771848012629,0.006747,1915.6,1914.9,1.1641522]
[1771848013437,1.03947731,1915.9,1914.9,1.1641522]
[1771848013732,1.03947731,1916.1,1915.2,1.1641522]
[1771848014529,1.04384846,1916.1,1915.2,1.1641522]
[1771848021838,0.93825032,1915.9,1915.2,1.1641522]
[1771848024343,0.90859227,1915.7,1915.2,1.1641522]
[1771848026540,0.26101,1915.8,1915.2,1.1641522]
[1771848026838,1.14959717,1915.8,1915.2,1.1641522]
[1771848027134,0.26104,1915.6,1915.2,1.1641522]
[1771848027339,0.88846099,1915.5,1915.2,1.1641522]
[1771848027745,1.140278,1915.6,1915.2,1.1641522]
[1771848029348,0.84736142,1915.5,1915.2,1.1641522]
[1771848030045,1.11282766,1915.6,1915.2,1.1641522]
[1771848031641,0.8384087,1915.5,1915.2,1.1641522]
[1771848032041,1.09667571,1915.6,1915.2,1.1641522]
[1771848033445,0.26104,1915.6,1915.2,1.1641522]
[1771848033647,1.08361025,1915.6,1915.2,1.1641522]
[1771848034546,0.26104,1915.6,1915.2,1.1641522]
[1771848034747,6.42443115,1916.1,1915.2,1.1641522]
[1771848034748,0.81334721,1915.9,1915.2,1.1641522]
[1771848035146,0.26101,1915.8,1915.2,1.1641522]
[1771848035352,0.00437115,1916.1,1915.2,1.1641522]
[1771848035958,0.80418722,1916.1,1915.2,1.1641522]
[1771848036450,0.26101,1915.8,1915.2,1.1641522]
[1771848038055,0.26101,1915.8,1915.2,5.53742887]
[1771848038351,0.26101,1915.8,1915.3,1.178369]
[1771848039255,0.26101,1915.8,1915.5,1.178369]
[1771848039852,0.80418722,1916.1,1915.5,1.178369]
[1771848042047,0.80418722,1916.1,1915.2,4.37327667]
[1771848042048,0.00437115,1916.1,1915.9,1.178369]
[1771848042247,1.03882273,1916.3,1915.9,1.178369]
[1771848042248,1.03882273,1916.3,1915.9,1.18332789]
[1771848042454,0.77203159,1916.2,1915.9,1.18332789]
[1771848043256,0.77594725,1916.2,1915.9,1.18332789]
[1771848044453,0.77594725,1916.2,1915.9,0.00495889]
[1771848044959,0.77594725,1916.2,1915.6,1.178369]
[1771848045160,0.76401238,1916.0,1915.4,1.178369]
[1771848045859,0.76401238,1916.0,1915.4,1.1848992]
[1771848047758,0.76401238,1916.0,1915.4,0.0065302]
[1771848047964,0.76401238,1916.0,1915.4,0.99092904]
[1771848051872,0.73281793,1915.8,1915.4,0.99092904]
[1771848054277,0.26102,1915.7,1915.4,0.99092904]
[1771848054579,0.97771144,1915.7,1915.4,0.99092904]
[1771848054875,0.26105,1915.5,1915.3,0.98439884]
[1771848055775,0.26105,1915.5,1915.2,0.98439884]
[1771848055975,0.26105,1915.5,1915.2,0.98997406]
[1771848056473,1.30271457,1915.5,1915.2,0.98997406]
[1771848056678,0.26105,1915.5,1915.2,0.98997406]
[1771848057481,1.30271457,1915.5,1915.2,0.98997406]
[1771848058181,0.26108,1915.3,1915.1,0.73973429]
[1771848059281,0.26108,1915.3,1915.1,0.74446227]
[1771848060779,1.30274457,1915.3,1915.0,0.83962669]
[1771848061784,1.30274457,1915.3,1915.0,0.84341366]
[1771848062574,1.04166457,1915.9,1915.0,0.84341366]
[1771848062777,1.04166457,1915.9,1915.4,2.26497151]
[1771848063187,1.04166457,1915.9,1915.4,0.5694496]
[1771848065390,1.04166457,1915.8,1915.3,0.61062765]
[1771848065583,1.04166457,1915.8,1915.2,0.61062765]
[1771848069992,1.04166457,1915.8,1915.3,0.59911267]
[1771848076194,1.04166457,1915.6,1915.3,0.59911267]
[1771848076395,1.04166457,1915.6,1915.2,0.59829554]
[1771848081505,1.04166457,1915.6,1915.1,4.37327667]
[1771848081992,1.04166457,1915.6,1915.1,4.38087704]
[1771848082495,1.04166457,1915.6,1915.1,0.60131451]
[1771848083301,1.04166457,1915.6,1915.1,4.98222253]
[1771848086302,1.04166457,1915.6,1915.2,0.59352999]
[1771848087001,1.04166457,1915.6,1915.1,4.9744412]
[1771848088901,1.04166457,1915.6,1915.2,0.5870025]
[1771848093199,1.03355979,1915.9,1915.2,0.5870025]
[1771848093603,1.03355979,1915.9,1915.2,4.96791052]
[1771848094204,1.03355979,1915.9,1915.2,4.38090802]
[1771848095203,1.03355979,1915.9,1915.1,4.96978934]
[1771848099306,0.26101,1915.8,1915.1,4.96978934]
[1771848099705,1.03355979,1915.7,1915.1,4.96978934]
[1771848100107,1.03355979,1915.7,1915.0,4.9903693]
[1771848100299,1.03355979,1915.5,1915.0,0.00378697]
[1771848102111,1.03355979,1915.3,1914.7,0.61536157]
[1771848103010,1.03355979,1915.3,1914.7,0.62049806]
[1771848103908,0.26106,1915.4,1914.7,0.62049806]
[1771848103909,1.29461979,1915.4,1914.7,0.62049806]
[1771848104302,1.03355979,1915.3,1914.7,0.62049806]
[1771848107310,1.29461979,1915.4,1914.7,0.62049806]
[1771848107511,1.03355979,1915.3,1914.7,0.62049806]
[1771848111116,1.06270922,1915.7,1915.0,1.10988457]
[1771848119318,1.32376922,1915.4,1915.0,1.10988457]
[1771848121019,1.32381922,1915.1,1914.8,1.10988457]
[1771848121419,1.32381922,1915.1,1914.7,0.00513649]
[1771848121720,1.32381922,1915.1,1914.5,1.10988457]
[1771848121914,1.32381922,1915.1,1914.4,1.10988457]
[1771848122116,1.06270922,1914.7,1914.2,4.37447911]
[1771848122316,0.26117,1914.6,1914.0,5.48436368]
[1771848122517,1.06270922,1914.5,1914.0,1.10988457]
[1771848122720,1.06884981,1914.5,1914.0,1.1157941]
[1771848122919,1.06270922,1914.3,1914.0,0.00590953]
[1771848123221,1.06270922,1914.3,1913.9,1.10988457]
[1771848124021,1.06270922,1914.3,1913.9,1.11658144]
[1771848124520,1.06270922,1914.9,1913.9,1.11658144]
[1771848125315,1.32383922,1914.9,1913.9,1.11658144]
[1771848125521,1.32915061,1914.9,1913.9,1.11658144]
[1771848125917,0.26116,1914.7,1913.9,1.11658144]
[1771848126115,1.32386922,1914.7,1913.9,1.11658144]
[1771848126316,0.26116,1914.7,1913.9,1.11658144]
[1771848126520,1.06270922,1914.8,1914.2,1.10988457]
[1771848127320,0.26116,1914.7,1914.2,1.10988457]
[1771848129225,1.06270922,1914.8,1914.2,1.10988457]
[1771848129630,0.00531139,1914.9,1914.2,1.10988457]
[1771848139543,1.38772629,1915.2,1914.2,1.10988457]
[1771848140642,1.39431297,1915.2,1914.2,1.10988457]
[1771848148151,1.39431297,1915.2,1914.1,5.50324436]
[1771848148450,1.12663629,1915.0,1914.1,1.13696764]
[1771848149252,1.12663629,1914.8,1914.1,1.13696764]
[1771848149450,1.12663629,1914.6,1913.9,0.00669687]
[1771848151754,1.12663629,1914.4,1913.9,0.00669687]
[1771848152650,1.12663629,1914.4,1913.9,1.14366451]
[1771848154148,1.12663629,1914.6,1913.9,1.14366451]
[1771848154454,1.12663629,1914.9,1913.9,1.14366451]
[1771848163358,1.12663629,1914.9,1914.3,1.13696764]
[1771848167255,1.12663629,1914.9,1914.1,1.13696764]
[1771848167455,1.12663629,1914.5,1913.9,1.14366451]
[1771848170965,1.12663629,1914.5,1913.9,0.00669687]
[1771848171166,1.12663629,1914.5,1913.9,0.94941968]
[1771848174568,0.93685,1914.3,1913.8,0.94272281]
[1771848175259,0.93685,1914.3,1913.5,0.94272281]
[1771848175562,0.93685,1914.3,1913.5,0.94781415]
[1771848178170,0.93685,1914.3,1913.7,0.94272281]
[1771848179870,1.19805,1914.4,1913.8,1.69778829]
[1771848180076,1.19805,1914.4,1913.9,0.94272281]
[1771848180671,0.93685,1914.4,1913.8,0.94272281]
[1771848181275,0.93685,1914.4,1913.9,0.94272281]
[1771848183376,0.93685,1914.7,1913.9,0.94272281]
[1771848184078,0.93685,1914.4,1913.7,0.94272281]
[1771848187781,0.93685,1914.5,1913.9,0.94272281]
[1771848188080,0.93685,1914.7,1914.3,0.94272281]
[1771848192887,0.93685,1914.7,1914.1,0.94272281]
[1771848196896,0.93685,1914.5,1913.9,0.94272281]
[1771848198289,0.89555325,1914.3,1913.9,0.94272281]
[1771848201397,1.17611024,1914.4,1913.9,0.94272281]
[1771848202901,0.91491024,1914.6,1914.1,0.88826917]
[1771848203294,0.91491024,1914.7,1914.3,0.88826917]
[1771848205994,0.91491024,1914.5,1914.1,0.88826917]
[1771848206697,0.91491024,1914.5,1914.0,0.88826917]
[1771848208500,0.91491024,1914.3,1913.9,0.88826917]
[1771848216602,0.91491024,1914.1,1913.7,4.36627672]
[1771848216808,0.91491024,1914.1,1913.6,0.88826917]
[1771848217107,0.91491024,1914.1,1913.7,0.88826917]
[1771848218409,1.17616024,1914.0,1913.7,0.88826917]
[1771848221907,0.26133,1913.5,1912.9,4.74303944]
[1771848222110,0.26127,1913.9,1913.3,0.91902983]
[1771848223008,0.26585105,1913.9,1913.3,0.92435358]
[1771848236123,0.48863787,1913.5,1913.0,0.87315547]
[1771848236331,0.48863787,1913.5,1912.8,0.87315547]
[1771848236521,0.26134,1913.4,1912.8,0.87315547]
[1771848236724,0.74419106,1913.4,1912.8,0.87315547]
[1771848237124,0.26134,1913.4,1912.8,0.87315547]
[1771848237327,0.26136,1913.2,1912.8,0.87780301]
[1771848237526,0.47742964,1913.1,1912.7,0.87315547]
[1771848237723,0.73878964,1913.2,1912.7,0.87315547]
[1771848238431,0.5044919,1913.3,1912.7,0.87754543]
[1771848238930,0.26131,1913.6,1912.7,0.87754543]
[1771848238931,0.49883726,1913.5,1912.7,0.87754543]
[1771848240933,0.7615893,1913.6,1912.7,0.87754543]
[1771848243036,0.26131,1913.6,1912.7,0.87754543]
[1771848249243,0.49439153,1913.8,1912.7,0.87754543]
[1771848251246,0.49439153,1913.8,1912.8,0.87315547]
[1771848252041,0.00458105,1913.9,1913.3,0.87315547]
[1771848252239,0.46975304,1914.2,1913.3,0.87315547]
[1771848252439,0.46444083,1914.4,1913.6,0.87315547]
[1771848252749,0.46444083,1914.6,1913.6,0.87315547]
[1771848253239,0.47060036,1914.6,1913.6,0.87315547]
[1771848256540,0.26119,1914.5,1913.6,0.87315547]
[1771848256847,0.45213434,1914.4,1913.6,0.87315547]
[1771848257241,0.45213434,1914.4,1913.5,0.87315547]
[1771848258348,0.26121,1914.3,1913.5,0.87315547]
[1771848258843,0.42679246,1914.2,1913.5,0.87315547]
[1771848263749,0.26124,1914.1,1913.5,0.87315547]
[1771848264049,0.3856663,1914.0,1913.5,0.87315547]
[1771848267853,0.26127,1913.9,1913.5,0.87315547]
[1771848268155,0.36784273,1913.8,1913.5,0.87315547]
[1771848268355,1.01282966,1913.7,1913.4,0.80095105]
[1771848268557,0.75153966,1913.6,1912.8,0.80095105]
[1771848269057,1.01282966,1913.7,1912.8,0.80095105]
[1771848270058,0.75153966,1913.9,1912.8,1.06236105]
[1771848270254,0.75153966,1914.0,1912.9,0.80095105]
[1771848271158,1.01278966,1914.1,1913.3,0.80095105]
[1771848275556,0.26125,1914.1,1913.3,0.80095105]
[1771848276156,1.01278966,1914.1,1913.3,0.80095105]
[1771848278559,0.75153966,1914.1,1913.3,0.80095105]
[1771848278957,0.75153966,1914.4,1913.3,0.80095105]
[1771848282563,0.75153966,1914.4,1913.4,0.80095105]
[1771848282960,0.75153966,1914.4,1913.6,0.80095105]
[1771848283263,0.75153966,1914.4,1913.8,0.80095105]
[1771848298676,0.75153966,1914.4,1913.7,1.6986702]
[1771848298677,0.75153966,1914.4,1913.6,0.7592866]
[1771848299680,0.75153966,1914.4,1913.8,0.7592866]
[1771848303183,0.75153966,1914.4,1914.0,0.7592866]
[1771848303973,5.06873991,1914.6,1914.2,0.7592866]
[1771848304173,0.71121856,1914.6,1914.2,0.76359822]
[1771848305781,0.71121856,1914.6,1914.2,0.00431162]
[1771848306477,0.71121856,1914.6,1914.0,0.7592866]
[1771848306775,0.71121856,1914.6,1913.9,0.7592866]
[1771848306982,0.70505903,1914.4,1913.9,0.7592866]
[1771848307379,0.70505903,1914.4,1913.9,0.76565522]
[1771848307578,0.70505903,1914.4,1913.9,0.00636862]
[1771848312386,0.70505903,1914.4,1913.9,0.76565522]
[1771848314383,0.70505903,1914.2,1913.9,0.00636862]
[1771848314684,0.70505903,1914.2,1913.7,0.7592866]
[1771848315487,0.70505903,1914.2,1913.7,0.76405412]
[1771848315687,0.26121,1914.3,1913.7,0.76405412]
[1771848315889,0.26121,1914.3,1913.8,0.7592866]
[1771848316086,0.96626903,1914.3,1913.8,0.7592866]
[1771848317891,5.1069294,1914.6,1914.0,0.70526825]
[1771848318189,0.74940805,1914.6,1914.0,0.70526825]
[1771848332800,0.74940805,1914.6,1913.8,4.38041321]
[1771848332801,5.07690163,1914.8,1914.2,0.67413928]
[1771848332992,0.71938028,1914.9,1914.5,0.67413928]
[1771848333197,0.71938028,1915.0,1914.5,0.67413928]
[1771848333899,0.72530677,1915.0,1914.5,0.67413928]
[1771848334300,0.72530677,1915.0,1914.3,0.67413928]
[1771848334803,0.71938028,1914.8,1914.1,5.05455249]
[1771848335003,0.71938028,1914.8,1914.1,0.67413928]
[1771848337705,0.71938028,1914.8,1914.3,0.67413928]
[1771848339808,0.71938028,1914.8,1914.0,4.38041321]
[1771848339809,0.71938028,1914.6,1914.1,0.67413928]
[1771848340401,0.71938028,1914.2,1913.7,0.6789068]
[1771848348016,0.7265937,1914.4,1913.7,0.6789068]
[1771848348224,0.7265937,1914.8,1914.1,0.68081991]
[1771848349117,0.7265937,1914.9,1914.2,0.68081991]
[1771848349320,0.73252019,1915.0,1914.2,0.68081991]
[1771848353222,0.00592649,1915.0,1914.2,0.68081991]
[1771848353630,0.7265937,1915.5,1914.4,0.68081991]
[1771848354521,0.73329975,1915.5,1914.4,0.68081991]
[1771848366444,0.7265937,1915.3,1914.4,0.68081991]
[1771848368352,0.7265937,1915.1,1914.4,0.68081991]
[1771848369547,0.9877137,1915.0,1914.4,0.68081991]
[1771848370243,0.7265937,1914.9,1914.4,0.68081991]
[1771848375454,0.26114,1914.8,1914.4,0.68081991]
[1771848375653,0.7265937,1914.7,1914.4,0.68081991]
[1771848377054,0.7265937,1914.7,1914.0,0.68081991]
[1771848384767,0.7265937,1914.7,1913.8,0.71310086]
[1771848387669,0.68937941,1914.6,1913.8,0.71310086]
[1771848393876,0.68937941,1914.4,1913.8,0.71310086]
[1771848396675,0.68937941,1914.4,1913.7,0.71786838]
[1771848411582,5.01906555,1914.5,1914.1,0.67627523]
[1771848411888,0.6615442,1914.5,1914.1,0.67627523]
[1771848412880,5.01906555,1914.6,1914.1,0.67627523]
[1771848413888,0.6615442,1914.8,1914.3,0.67627523]
[1771848415692,4.35752135,1915.0,1913.8,1.69871454]
[1771848415693,0.6615442,1915.0,1914.5,0.67627523]
[1771848421802,0.6615442,1915.0,1914.6,0.67627523]
[1771848421991,0.6615442,1915.1,1914.6,0.67627523]
[1771848422600,0.9226242,1915.3,1914.6,0.67627523]
[1771848423100,0.6615442,1915.2,1914.6,0.67627523]
[1771848438806,0.6615442,1915.2,1914.3,1.69871454]
[1771848439009,0.68269624,1914.8,1914.2,0.68474613]
[1771848440710,0.68269624,1914.8,1913.9,1.69871454]
[1771848440711,0.68269624,1914.8,1914.0,0.68474613]
[1771848444116,0.68269624,1914.4,1913.8,0.68474613]
[1771848464631,0.68269624,1915.1,1914.4,0.68474613]
[1771848464837,0.68269624,1915.3,1914.9,0.68474613]
[1771848465236,0.00670605,1915.5,1914.9,0.68474613]
[1771848465237,0.4768055,1915.5,1914.9,0.68474613]
[1771848467239,0.44970219,1915.5,1914.9,0.68474613]
[1771848477243,0.00670605,1915.5,1914.9,0.68474613]
[1771848477440,0.46364478,1915.5,1914.9,0.68474613]
[1771848480939,0.26106,1915.4,1914.4,0.6363927]
[1771848481142,0.4574098,1915.3,1914.4,0.6363927]
[1771848481343,0.00670605,1915.5,1914.4,0.6363927]
[1771848481344,0.46410836,1915.5,1914.4,0.6363927]
[1771848481841,0.00670605,1915.5,1914.7,0.6363927]
[1771848482446,0.44163842,1916.0,1915.0,0.6363927]
[1771848483441,0.44789183,1916.0,1915.0,0.6363927]
[1771848487653,0.44700174,1915.8,1915.0,0.6363927]
[1771848492948,0.44382475,1915.9,1915.0,0.6363927]
[1771848493953,0.00625341,1916.0,1915.5,0.6363927]
[1771848494157,0.44429151,1916.2,1915.5,0.64216606]
[1771848495052,0.44937204,1916.2,1915.5,0.64216606]
[1771848495253,0.00508053,1916.2,1915.5,0.64216606]
[1771848497460,0.44908587,1916.2,1915.5,0.64216606]
[1771848502965,0.26097,1916.1,1915.5,0.64216606]
[1771848503167,0.39963487,1916.0,1915.5,0.64216606]
[1771848504066,0.26097,1916.1,1915.5,0.64216606]
[1771848504864,0.65384004,1916.1,1915.5,0.64216606]
[1771848506473,0.3936397,1916.0,1915.5,0.64216606]
[1771848513276,0.26099,1915.9,1915.5,0.64216606]
[1771848513479,0.68927219,1915.8,1915.5,0.00577336]
[1771848513779,0.68927219,1915.8,1915.4,0.6880472]
[1771848514276,0.26097,1916.1,1915.4,0.6880472]
[1771848514480,0.26092,1916.5,1915.7,1.69694166]
[1771848514676,0.26092,1916.5,1915.8,0.6880472]
[1771848514871,0.95013219,1916.9,1915.8,0.6880472]
[1771848515074,0.68927219,1917.1,1916.1,0.6880472]
[1771848515778,0.69557343,1917.1,1916.1,0.6880472]
[1771848516779,0.68927219,1916.9,1916.1,0.6880472]
[1771848518281,0.95014219,1916.8,1916.1,0.6880472]
[1771848519278,0.68927219,1916.5,1915.8,0.6880472]
[1771848520472,0.26093,1916.4,1915.8,0.6880472]
[1771848521575,6.41722,1917.0,1915.8,0.6880472]
[1771848521576,0.68927219,1916.8,1915.8,0.6880472]
[1771848522183,0.68927219,1916.6,1915.8,0.6880472]
[1771848522481,0.26091,1916.5,1915.8,0.6880472]
[1771848525782,0.26091,1916.5,1915.9,0.6880472]
[1771848528084,0.68927219,1916.8,1915.9,0.6880472]
[1771848535590,0.26089,1916.7,1915.9,0.6880472]
[1771848535792,0.71993179,1916.6,1915.9,0.6880472]
[1771848537590,0.71993179,1916.4,1915.9,0.6880472]
[1771848538086,0.71993179,1916.4,1915.8,0.75529413]
[1771848538282,0.71993179,1916.2,1915.7,0.00417124]
[1771848539085,0.71993179,1916.2,1915.7,0.75946537]
[1771848540294,0.71993179,1916.0,1915.5,0.75529413]
[1771848540890,0.71993179,1916.0,1915.1,0.75529413]
[1771848541293,0.71993179,1916.0,1915.1,0.76155181]
[1771848542092,0.71993179,1915.8,1915.1,0.76155181]
[1771848542694,0.71993179,1915.6,1915.1,0.76155181]
[1771848542999,0.72629883,1915.6,1915.1,0.76155181]
[1771848544398,0.72629883,1915.6,1915.1,0.00625768]
[1771848544693,0.71993179,1915.2,1914.4,0.75529413]
[1771848545694,0.71993179,1915.0,1914.4,0.76079295]
[1771848546496,0.71993179,1914.8,1914.4,0.76079295]
[1771848546700,0.71993179,1914.6,1914.4,0.00549882]
[1771848546892,0.71993179,1914.6,1914.2,0.75529413]
[1771848547601,0.71993179,1914.6,1914.1,0.75529413]
[1771848547799,0.71993179,1914.6,1914.1,0.75981516]
[1771848550598,0.2611,1915.1,1914.1,0.75981516]
[1771848550799,0.71993179,1915.0,1914.1,0.75981516]
[1771848555601,6.42205,1915.5,1914.1,0.75981516]
[1771848555602,0.71993179,1914.8,1914.1,0.75981516]
[1771848556900,0.72629883,1915.6,1914.8,0.75529413]
[1771848558501,0.26105,1915.5,1914.8,0.75529413]
[1771848558805,0.80004199,1915.4,1914.8,0.75529413]
[1771848568903,0.80004199,1915.4,1914.5,0.26118]
[1771848569105,0.80004199,1915.4,1914.6,0.81182726]
[1771848570706,0.80004199,1915.4,1914.4,0.81182726]
[1771848571007,0.80004199,1915.2,1914.3,0.81182726]
[1771848571202,0.80004199,1915.2,1914.1,0.81634829]
[1771848583520,0.80004199,1915.2,1914.2,0.81182726]
[1771848585119,0.80004199,1915.0,1914.2,0.81182726]
[1771848586820,0.80004199,1915.0,1914.1,0.81634829]